[Event "*** Titled Tuesday Blitz"]
[Site "Chess.com"]
[Date "2018.09.04"]
[Round "3"]
[White "Po6Don"]
[Black "Ksenia_Legenko"]
[Result "1-0"]
[WhiteElo "2102"]
[BlackElo "2053"]
[TimeControl "180+2"]
[EndTime "14:14:01 PDT"]
[Termination "Po6Don won by resignation"]

1. e4 {[%clk 0:03:01.9]} 1... c6 {[%clk 0:03:00.4]} 2. d4 {[%clk 0:03:01.3]}
2... d5 {[%clk 0:03:01.8]} 3. exd5 {[%clk 0:03:02.8]} 3... cxd5 {[%clk
0:03:02.9]} 4. c4 {[%clk 0:03:04.4]} 4... Nf6 {[%clk 0:03:03.2]} 5. Nc3 {[%clk
0:03:05.8]} 5... g6 {[%clk 0:03:04.1]} 6. Qb3 {[%clk 0:03:05]} 6... Bg7 {[%clk
0:03:03.6]} 7. cxd5 {[%clk 0:03:01.6]} 7... O-O {[%clk 0:03:03.9]} 8. Be2 {[%clk
0:03:03.1]} 8... Qb6 {[%clk 0:03:01.1]} 9. Qxb6 {[%clk 0:02:58.4]} 9... axb6
{[%clk 0:03:01.7]} 10. Bf3 {[%clk 0:03:00.1]} 10... Na6 {[%clk 0:03:02.1]} 11.
Nge2 {[%clk 0:02:56]} 11... Nb4 {[%clk 0:02:58.1]} 12. O-O {[%clk 0:02:56.3]}
12... Rd8 {[%clk 0:02:58.7]} 13. Bg5 {[%clk 0:02:40.5]} 13... Bf5 {[%clk
0:02:08]} 14. a3 {[%clk 0:02:32.8]} 14... Nbxd5 {[%clk 0:01:59]} 15. Nxd5 {[%clk
0:02:31.6]} 15... Nxd5 {[%clk 0:01:59.9]} 16. Bxd5 {[%clk 0:02:16.9]} 16... Rxd5
{[%clk 0:02:00.3]} 17. Be3 {[%clk 0:01:59.5]} 17... Bd3 {[%clk 0:01:48]} 18.
Rfe1 {[%clk 0:01:59.8]} 18... Bxe2 {[%clk 0:01:41.9]} 19. Rxe2 {[%clk
0:02:00.1]} 19... Rad8 {[%clk 0:01:43.4]} 20. Kf1 {[%clk 0:01:56.9]} 20... e6
{[%clk 0:01:43.1]} 21. Rd1 {[%clk 0:01:53]} 21... Bxd4 {[%clk 0:01:37.8]} 22.
Bxd4 {[%clk 0:01:37.4]} 22... Rxd4 {[%clk 0:01:38.5]} 23. Rxd4 {[%clk
0:01:39.1]} 23... Rxd4 {[%clk 0:01:39.4]} 24. Rc2 {[%clk 0:01:41]} 24... Rd7
{[%clk 0:01:34]} 25. Ke2 {[%clk 0:01:38.8]} 25... Kg7 {[%clk 0:01:34]} 26. Ke3
{[%clk 0:01:39.2]} 26... Kf6 {[%clk 0:01:35.2]} 27. f4 {[%clk 0:01:40.1]} 27...
Kf5 {[%clk 0:01:33.8]} 28. h3 {[%clk 0:01:37.4]} 28... h5 {[%clk 0:01:33.8]} 29.
Rc4 {[%clk 0:01:34.5]} 29... g5 {[%clk 0:01:22.4]} 30. fxg5 {[%clk 0:01:34.1]}
30... Kxg5 {[%clk 0:01:23.3]} 31. Rb4 {[%clk 0:01:32.6]} 31... Rd6 {[%clk
0:01:24.3]} 32. Rb5+ {[%clk 0:01:33.7]} 32... Kg6 {[%clk 0:01:22.8]} 33. h4
{[%clk 0:01:31]} 33... f6 {[%clk 0:01:23.2]} 34. b4 {[%clk 0:01:27.6]} 34... e5
{[%clk 0:01:23.6]} 35. a4 {[%clk 0:01:27.6]} 35... Kf5 {[%clk 0:01:23.9]} 36. a5
{[%clk 0:01:27.7]} 36... bxa5 {[%clk 0:01:24.5]} 37. bxa5 {[%clk 0:01:29.6]}
37... Rd7 {[%clk 0:01:24.3]} 38. Rb6 {[%clk 0:01:25.1]} 38... Rc7 {[%clk
0:01:25]} 39. Kf2 {[%clk 0:01:20.3]} 39... Rc2+ {[%clk 0:01:21.4]} 40. Kg3
{[%clk 0:01:19.4]} 40... Rc7 {[%clk 0:01:20.6]} 41. Kh3 {[%clk 0:01:15.6]} 41...
e4 {[%clk 0:01:17.3]} 42. Kg3 {[%clk 0:01:16.6]} 42... Rc3+ {[%clk 0:01:10.4]}
43. Kf2 {[%clk 0:01:17.4]} 43... Rc2+ {[%clk 0:01:10.5]} 44. Kg3 {[%clk
0:01:17.2]} 44... Rc7 {[%clk 0:00:45.2]} 45. Rb5+ {[%clk 0:01:15.5]} 45... Ke6
{[%clk 0:00:45.1]} 46. Kf4 {[%clk 0:01:15.8]} 46... f5 {[%clk 0:00:46.1]} 47.
Rxf5 {[%clk 0:01:14.1]} 47... Rc2 {[%clk 0:00:42.2]} 48. Rxh5 {[%clk 0:01:06.8]}
48... Rxg2 {[%clk 0:00:40.9]} 49. Re5+ {[%clk 0:00:54.7]} 49... Kf6 {[%clk
0:00:41.3]} 50. Rb5 {[%clk 0:00:43.8]} 50... Rf2+ {[%clk 0:00:31.8]} 51. Kxe4
{[%clk 0:00:43.5]} 51... Ra2 {[%clk 0:00:32.6]} 52. Rb6+ {[%clk 0:00:40.7]}
52... Kg7 {[%clk 0:00:33.2]} 53. Rxb7+ {[%clk 0:00:41.4]} 53... Kf6 {[%clk
0:00:33.6]} 54. Rb6+ {[%clk 0:00:40.8]} 54... Kg7 {[%clk 0:00:32.6]} 55. a6
{[%clk 0:00:40.1]} 55... Ra4+ {[%clk 0:00:33.1]} 56. Kd5 {[%clk 0:00:41]} 56...
Rxh4 {[%clk 0:00:34]} 57. Kc6 {[%clk 0:00:35]} 57... Kf7 {[%clk 0:00:23.8]} 58.
a7 {[%clk 0:00:27.6]} 58... Ra4 {[%clk 0:00:23.5]} 59. Kc7 {[%clk 0:00:28.4]}
59... Ke7 {[%clk 0:00:22.9]} 60. Kb7 {[%clk 0:00:28.6]} 1-0

[Event "*** Titled Tuesday Blitz"]
[Site "Chess.com"]
[Date "2018.09.04"]
[Round "3"]
[White "Korchmar_Vasiliy"]
[Black "jncool68"]
[Result "1/2-1/2"]
[WhiteElo "2641"]
[BlackElo "2503"]
[TimeControl "180+2"]
[EndTime "14:14:02 PDT"]
[Termination "Game drawn by repetition"]

1. d4 {[%clk 0:03:00.5]} 1... Nf6 {[%clk 0:02:56.9]} 2. Nf3 {[%clk 0:03:01.6]}
2... e6 {[%clk 0:02:57.9]} 3. Bf4 {[%clk 0:03:02.5]} 3... d5 {[%clk 0:02:56.8]}
4. e3 {[%clk 0:03:03.6]} 4... Bd6 {[%clk 0:02:57.5]} 5. Bg3 {[%clk 0:03:04.8]}
5... O-O {[%clk 0:02:57.8]} 6. Nbd2 {[%clk 0:03:06]} 6... c5 {[%clk 0:02:58.6]}
7. c3 {[%clk 0:03:06.8]} 7... Qc7 {[%clk 0:02:59.7]} 8. Ne5 {[%clk 0:03:07.9]}
8... Nbd7 {[%clk 0:02:57.4]} 9. f4 {[%clk 0:03:01.7]} 9... Ne4 {[%clk
0:02:58.2]} 10. Nxe4 {[%clk 0:02:58.5]} 10... dxe4 {[%clk 0:03:00.1]} 11. Nc4
{[%clk 0:02:37.9]} 11... cxd4 {[%clk 0:02:53.1]} 12. Nxd6 {[%clk 0:02:11.9]}
12... Qxd6 {[%clk 0:02:51]} 13. cxd4 {[%clk 0:02:03.8]} 13... Nf6 {[%clk
0:02:48.7]} 14. Be2 {[%clk 0:01:59.8]} 14... Nd5 {[%clk 0:02:47.9]} 15. Qd2
{[%clk 0:01:59.8]} 15... f5 {[%clk 0:02:45.9]} 16. O-O {[%clk 0:01:55]} 16...
Bd7 {[%clk 0:02:46.7]} 17. Rfc1 {[%clk 0:01:49.4]} 17... Rac8 {[%clk 0:02:46.7]}
18. a3 {[%clk 0:01:48.3]} 18... Qb6 {[%clk 0:02:43.5]} 19. b4 {[%clk 0:01:46.1]}
19... Bb5 {[%clk 0:02:44]} 20. Rc5 {[%clk 0:01:38]} 20... Bxe2 {[%clk
0:02:44.1]} 21. Qxe2 {[%clk 0:01:39.9]} 21... Rxc5 {[%clk 0:02:19.7]} 22. dxc5
{[%clk 0:01:41.8]} 22... Qc6 {[%clk 0:02:18.9]} 23. Bf2 {[%clk 0:01:30.8]} 23...
b6 {[%clk 0:02:19.1]} 24. Rc1 {[%clk 0:01:28.7]} 24... bxc5 {[%clk 0:02:19.3]}
25. Rxc5 {[%clk 0:01:28.3]} 25... Qa4 {[%clk 0:02:20.1]} 26. Ra5 {[%clk
0:01:17.6]} 26... Qd7 {[%clk 0:02:20.7]} 27. h3 {[%clk 0:01:07.4]} 27... Rc8
{[%clk 0:02:20.4]} 28. Rc5 {[%clk 0:01:01.4]} 28... Rxc5 {[%clk 0:02:17.2]} 29.
bxc5 {[%clk 0:01:03.3]} 29... Qc6 {[%clk 0:02:17.3]} 30. Qc4 {[%clk 0:01:03]}
30... Nb6 {[%clk 0:02:12.2]} 31. Qa6 {[%clk 0:00:54.9]} 31... Qxc5 {[%clk
0:02:11.7]} 32. Qxa7 {[%clk 0:00:56.1]} 32... h6 {[%clk 0:02:09.8]} 33. a4
{[%clk 0:00:50.4]} 33... Qc1+ {[%clk 0:02:10.4]} 34. Kh2 {[%clk 0:00:50.9]}
34... Nc4 {[%clk 0:02:11.1]} 35. Qe7 {[%clk 0:00:34.5]} 35... Nd2 {[%clk
0:02:06.4]} 36. Qxe6+ {[%clk 0:00:34.6]} 36... Kh8 {[%clk 0:02:07.6]} 37. h4
{[%clk 0:00:21.6]} 37... Nf1+ {[%clk 0:01:58.8]} 38. Kh3 {[%clk 0:00:22.5]}
38... Nxe3 {[%clk 0:02:00.1]} 39. Bxe3 {[%clk 0:00:16.8]} 39... Qxe3+ {[%clk
0:02:00.5]} 40. g3 {[%clk 0:00:18.2]} 40... Qc5 {[%clk 0:02:01.4]} 41. h5 {[%clk
0:00:16.1]} 41... Qa5 {[%clk 0:01:52.5]} 42. Qe8+ {[%clk 0:00:14.2]} 42... Kh7
{[%clk 0:01:52.9]} 43. Qg6+ {[%clk 0:00:15.2]} 43... Kh8 {[%clk 0:01:54.1]} 44.
Qe8+ {[%clk 0:00:16]} 44... Kh7 {[%clk 0:01:55.2]} 45. Qb5 {[%clk 0:00:12.2]}
45... Qe1 {[%clk 0:01:55.5]} 46. Qxf5+ {[%clk 0:00:12.8]} 46... Kh8 {[%clk
0:01:57.1]} 47. Qc8+ {[%clk 0:00:12.8]} 47... Kh7 {[%clk 0:01:58.2]} 48. Qf5+
{[%clk 0:00:13.3]} 48... Kh8 {[%clk 0:01:58.8]} 49. Qf8+ {[%clk 0:00:10.8]}
49... Kh7 {[%clk 0:01:58.8]} 50. Qf5+ {[%clk 0:00:11.3]} 50... Kg8 {[%clk
0:01:57.3]} 51. Qe6+ {[%clk 0:00:10.6]} 51... Kf8 {[%clk 0:01:57.5]} 52. a5
{[%clk 0:00:08]} 52... e3 {[%clk 0:01:56.8]} 53. Qf5+ {[%clk 0:00:05.4]} 53...
Ke7 {[%clk 0:01:57.3]} 54. Qe5+ {[%clk 0:00:06.3]} 54... Kd7 {[%clk 0:01:57.6]}
55. Qd5+ {[%clk 0:00:07.4]} 55... Kc7 {[%clk 0:01:54.6]} 56. Qc5+ {[%clk
0:00:08.3]} 56... Kd7 {[%clk 0:01:55.5]} 57. Qd5+ {[%clk 0:00:09.2]} 57... Ke7
{[%clk 0:01:56.8]} 58. Qe5+ {[%clk 0:00:09.8]} 58... Kf8 {[%clk 0:01:58]} 59.
Qf5+ {[%clk 0:00:09.6]} 59... Ke7 {[%clk 0:01:59.1]} 60. Qe5+ {[%clk 0:00:10.5]}
60... Kf8 {[%clk 0:02:00]} 61. a6 {[%clk 0:00:11]} 61... Qh1+ {[%clk 0:01:53.4]}
62. Kg4 {[%clk 0:00:11.9]} 62... Qd1+ {[%clk 0:01:54.4]} 63. Kh4 {[%clk
0:00:06.7]} 63... Qh1+ {[%clk 0:01:47.4]} 64. Kg4 {[%clk 0:00:07.8]} 64... Qd1+
{[%clk 0:01:47.8]} 65. Kf5 {[%clk 0:00:07.5]} 65... Qd7+ {[%clk 0:01:47.3]} 66.
Kg6 {[%clk 0:00:07.8]} 66... Qf7+ {[%clk 0:01:45.5]} 67. Kh7 {[%clk 0:00:05.7]}
67... Qg8+ {[%clk 0:01:08.5]} 68. Kg6 {[%clk 0:00:06.6]} 68... Qf7+ {[%clk
0:01:10]} 69. Kh7 {[%clk 0:00:07.9]} 69... Qg8+ {[%clk 0:01:03.4]} 70. Kg6
{[%clk 0:00:08.8]} 70... Qf7+ {[%clk 0:01:04.8]} 71. Kh7 {[%clk 0:00:09.9]}
71... Qg8+ {[%clk 0:01:05.7]} 72. Kg6 {[%clk 0:00:09]} 72... Qf7+ {[%clk
0:01:07.6]} 73. Kh7 {[%clk 0:00:10]} 73... Qg8+ {[%clk 0:01:07.5]} 74. Kg6
{[%clk 0:00:10.8]} 74... Qf7+ {[%clk 0:01:08.7]} 1/2-1/2

[Event "*** Titled Tuesday Blitz"]
[Site "Chess.com"]
[Date "2018.09.04"]
[Round "3"]
[White "gammagramma"]
[Black "A-Fier"]
[Result "1/2-1/2"]
[WhiteElo "2586"]
[BlackElo "2759"]
[TimeControl "180+2"]
[EndTime "14:14:23 PDT"]
[Termination "Game drawn - insufficient material"]

1. d4 {[%clk 0:03:01.9]} 1... Nf6 {[%clk 0:02:59.7]} 2. Nf3 {[%clk 0:03:03.2]}
2... g6 {[%clk 0:03:00.9]} 3. Bf4 {[%clk 0:03:03.5]} 3... Bg7 {[%clk 0:03:02.4]}
4. h3 {[%clk 0:03:04.9]} 4... O-O {[%clk 0:03:03.1]} 5. e3 {[%clk 0:03:05.9]}
5... b6 {[%clk 0:03:04.3]} 6. c4 {[%clk 0:03:06.9]} 6... Bb7 {[%clk 0:03:05.2]}
7. Nc3 {[%clk 0:03:08.4]} 7... d5 {[%clk 0:03:06.1]} 8. Be2 {[%clk 0:03:07.2]}
8... dxc4 {[%clk 0:03:05.2]} 9. Bxc4 {[%clk 0:03:08.3]} 9... Nd5 {[%clk
0:03:06.2]} 10. Bg3 {[%clk 0:03:06]} 10... Nxc3 {[%clk 0:03:06.3]} 11. bxc3
{[%clk 0:03:07.1]} 11... Ba6 {[%clk 0:03:07.9]} 12. Qa4 {[%clk 0:03:06.4]} 12...
Bxc4 {[%clk 0:03:08.3]} 13. Qxc4 {[%clk 0:03:08.3]} 13... c5 {[%clk 0:03:09.2]}
14. O-O {[%clk 0:03:07.8]} 14... Qc8 {[%clk 0:03:10.2]} 15. Rfc1 {[%clk
0:03:06.2]} 15... Qa6 {[%clk 0:03:10.9]} 16. Nd2 {[%clk 0:03:05.3]} 16... Qxc4
{[%clk 0:03:07.9]} 17. Nxc4 {[%clk 0:03:06]} 17... Nc6 {[%clk 0:03:08.4]} 18. d5
{[%clk 0:03:05.1]} 18... Nb8 {[%clk 0:03:05.3]} 19. Bxb8 {[%clk 0:02:56.7]}
19... Raxb8 {[%clk 0:03:05.2]} 20. a4 {[%clk 0:02:55.3]} 20... f5 {[%clk
0:03:04.2]} 21. Ra2 {[%clk 0:02:43.6]} 21... Rfd8 {[%clk 0:03:04.6]} 22. Rd2
{[%clk 0:02:44.6]} 22... Kf7 {[%clk 0:03:04.8]} 23. f3 {[%clk 0:02:44.1]} 23...
Rb7 {[%clk 0:03:03.4]} 24. Na3 {[%clk 0:02:42]} 24... Rbd7 {[%clk 0:03:03.1]}
25. c4 {[%clk 0:02:43]} 25... e6 {[%clk 0:03:03.8]} 26. Rcd1 {[%clk 0:02:36.6]}
26... Bc3 {[%clk 0:03:00.4]} 27. Rd3 {[%clk 0:02:36.3]} 27... Bb2 {[%clk
0:03:01.5]} 28. Nb5 {[%clk 0:02:33.4]} 28... exd5 {[%clk 0:02:58.6]} 29. Rxd5
{[%clk 0:02:28.4]} 29... Rxd5 {[%clk 0:02:59]} 30. cxd5 {[%clk 0:02:23.5]} 30...
c4 {[%clk 0:02:58.5]} 31. e4 {[%clk 0:02:19.5]} 31... fxe4 {[%clk 0:02:58.8]}
32. fxe4 {[%clk 0:02:20.6]} 32... Kf6 {[%clk 0:02:55.4]} 33. Nxa7 {[%clk
0:02:14.1]} 33... c3 {[%clk 0:02:53.7]} 34. Nc6 {[%clk 0:02:14.9]} 34... Re8
{[%clk 0:02:35.3]} 35. Rf1+ {[%clk 0:01:56.8]} 35... Kg5 {[%clk 0:02:33.7]} 36.
d6 {[%clk 0:01:56]} 36... c2 {[%clk 0:02:34.7]} 37. d7 {[%clk 0:01:57.1]} 37...
Ra8 {[%clk 0:02:31.6]} 38. e5 {[%clk 0:01:31.3]} 38... c1=Q {[%clk 0:02:32.8]}
39. Rxc1 {[%clk 0:01:31.9]} 39... Bxc1 {[%clk 0:02:34.7]} 40. e6 {[%clk
0:01:31.9]} 40... Ba3 {[%clk 0:02:36.1]} 41. d8=Q+ {[%clk 0:01:10.9]} 41... Rxd8
{[%clk 0:02:36.7]} 42. Nxd8 {[%clk 0:01:12.8]} 42... Kf6 {[%clk 0:02:38.2]} 43.
Kf2 {[%clk 0:01:12.2]} 43... Ke7 {[%clk 0:02:39.3]} 44. Nf7 {[%clk 0:01:09.6]}
44... Bc1 {[%clk 0:02:39.1]} 45. Ne5 {[%clk 0:01:04.3]} 45... Ba3 {[%clk
0:02:30.7]} 46. Kf3 {[%clk 0:01:01.1]} 46... Kxe6 {[%clk 0:02:31.9]} 47. Ke4
{[%clk 0:01:01.9]} 47... Bc5 {[%clk 0:02:26.8]} 48. Nd3 {[%clk 0:01:01.5]} 48...
Bg1 {[%clk 0:02:27.3]} 49. g4 {[%clk 0:01:00.7]} 49... Kd6 {[%clk 0:02:28.6]}
50. h4 {[%clk 0:00:57.9]} 50... Bh2 {[%clk 0:02:20.2]} 51. Nb4 {[%clk
0:00:51.5]} 51... Kc5 {[%clk 0:02:18.1]} 52. Nd5 {[%clk 0:00:52.4]} 52... Bg3
{[%clk 0:02:18.9]} 53. h5 {[%clk 0:00:48.6]} 53... gxh5 {[%clk 0:02:12.8]} 54.
gxh5 {[%clk 0:00:50.5]} 54... h6 {[%clk 0:02:13.8]} 55. Ne7 {[%clk 0:00:41.3]}
55... Bh4 {[%clk 0:02:12.2]} 56. Nd5 {[%clk 0:00:32.2]} 56... Bg5 {[%clk
0:02:13.6]} 57. Ke5 {[%clk 0:00:32.9]} 57... Bc1 {[%clk 0:02:11.2]} 58. Ke6
{[%clk 0:00:32.9]} 58... Bd2 {[%clk 0:02:12.3]} 59. Ke5 {[%clk 0:00:28]} 59...
Bc1 {[%clk 0:02:13.3]} 60. Ke4 {[%clk 0:00:24.8]} 60... Bb2 {[%clk 0:02:14.3]}
61. Ne3 {[%clk 0:00:19.6]} 61... Kb4 {[%clk 0:02:13.7]} 62. Nd5+ {[%clk
0:00:19.2]} 62... Kc5 {[%clk 0:02:14.9]} 63. Ne3 {[%clk 0:00:20.3]} 63... Kb4
{[%clk 0:01:53.5]} 64. Nd5+ {[%clk 0:00:20.9]} 64... Ka5 {[%clk 0:01:55]} 65.
Kd3 {[%clk 0:00:21.3]} 65... Bc1 {[%clk 0:01:50.6]} 66. Kc2 {[%clk 0:00:21.4]}
66... Bg5 {[%clk 0:01:51.1]} 67. Kb3 {[%clk 0:00:22.2]} 67... Ka6 {[%clk
0:01:52.5]} 68. Kb4 {[%clk 0:00:21.6]} 68... Bd2+ {[%clk 0:01:52.2]} 69. Kc4
{[%clk 0:00:23]} 69... Ka5 {[%clk 0:01:53.5]} 70. Kb3 {[%clk 0:00:24.1]} 70...
Be1 {[%clk 0:01:52.9]} 71. Ne7 {[%clk 0:00:22.9]} 71... Bf2 {[%clk 0:01:47.8]}
72. Nf5 {[%clk 0:00:23]} 72... b5 {[%clk 0:01:47.1]} 73. axb5 {[%clk 0:00:23.9]}
73... Kxb5 {[%clk 0:01:49]} 74. Nxh6 {[%clk 0:00:25.4]} 74... Kc5 {[%clk
0:01:49.2]} 75. Nf5 {[%clk 0:00:26.6]} 75... Bg1 {[%clk 0:01:27]} 76. Kc3 {[%clk
0:00:25.8]} 76... Kd5 {[%clk 0:01:25.4]} 77. h6 {[%clk 0:00:25.2]} 77... Bh2
{[%clk 0:01:26.4]} 78. Ne7+ {[%clk 0:00:23.1]} 78... Ke6 {[%clk 0:01:26.4]} 79.
Ng6 {[%clk 0:00:24.3]} 79... Kf7 {[%clk 0:01:22.9]} 80. h7 {[%clk 0:00:24.9]}
80... Be5+ {[%clk 0:01:24.4]} 81. Kd3 {[%clk 0:00:19.1]} 81... Kxg6 {[%clk
0:01:20.4]} 82. Ke4 {[%clk 0:00:18.4]} 82... Bh8 {[%clk 0:01:22.3]} 83. Kf4
{[%clk 0:00:19.3]} 83... Kxh7 {[%clk 0:01:23.3]} 1/2-1/2

[Event "*** Titled Tuesday Blitz"]
[Site "Chess.com"]
[Date "2018.09.04"]
[Round "3"]
[White "Oneofmyturns"]
[Black "lexisvar"]
[Result "0-1"]
[WhiteElo "2584"]
[BlackElo "2436"]
[TimeControl "180+2"]
[EndTime "14:14:41 PDT"]
[Termination "lexisvar won by resignation"]

1. d4 {[%clk 0:03:01.9]} 1... Nf6 {[%clk 0:03:00.5]} 2. c4 {[%clk 0:03:03.1]}
2... e6 {[%clk 0:03:01.4]} 3. Nc3 {[%clk 0:03:04.6]} 3... Bb4 {[%clk 0:03:02.4]}
4. Qc2 {[%clk 0:03:05.9]} 4... b6 {[%clk 0:03:00.8]} 5. e4 {[%clk 0:03:04.1]}
5... Bxc3+ {[%clk 0:03:01.8]} 6. bxc3 {[%clk 0:03:02]} 6... d6 {[%clk
0:03:03.1]} 7. Bd3 {[%clk 0:03:01.7]} 7... e5 {[%clk 0:03:04.4]} 8. Ne2 {[%clk
0:03:00.7]} 8... O-O {[%clk 0:03:02.2]} 9. f3 {[%clk 0:02:59.4]} 9... Nc6 {[%clk
0:03:02.8]} 10. Be3 {[%clk 0:02:58.5]} 10... Re8 {[%clk 0:03:03.2]} 11. h4
{[%clk 0:02:57.8]} 11... Ba6 {[%clk 0:02:53.6]} 12. Qa4 {[%clk 0:02:52.9]} 12...
Na5 {[%clk 0:02:54.3]} 13. Rb1 {[%clk 0:02:27.2]} 13... Qd7 {[%clk 0:02:53.8]}
14. Rb4 {[%clk 0:02:27.5]} 14... c5 {[%clk 0:02:47.1]} 15. Qxd7 {[%clk
0:02:18.4]} 15... Nxd7 {[%clk 0:02:47.4]} 16. Ra4 {[%clk 0:02:19.4]} 16... cxd4
{[%clk 0:02:44.1]} 17. cxd4 {[%clk 0:02:21.3]} 17... exd4 {[%clk 0:02:36.3]} 18.
Bxd4 {[%clk 0:02:15.2]} 18... Nc5 {[%clk 0:02:34.3]} 19. Bxc5 {[%clk 0:02:13.2]}
19... dxc5 {[%clk 0:02:36.2]} 20. Nc3 {[%clk 0:02:13.1]} 20... Bb7 {[%clk
0:02:27.7]} 21. Kf2 {[%clk 0:01:56]} 21... Rad8 {[%clk 0:02:21.8]} 22. Nd5
{[%clk 0:01:53.8]} 22... Bc6 {[%clk 0:02:23.2]} 23. Ra3 {[%clk 0:01:54.4]} 23...
Rd7 {[%clk 0:02:22.5]} 24. g4 {[%clk 0:01:51.3]} 24... f6 {[%clk 0:02:21.2]} 25.
Rb1 {[%clk 0:01:52.3]} 25... Ba8 {[%clk 0:02:02.2]} 26. Bf1 {[%clk 0:01:47.6]}
26... Kf7 {[%clk 0:01:57.3]} 27. Kg3 {[%clk 0:01:20]} 27... Nc6 {[%clk
0:01:50.5]} 28. Be2 {[%clk 0:01:12.2]} 28... Nd4 {[%clk 0:01:48.4]} 29. Bd1
{[%clk 0:01:13.5]} 29... Bc6 {[%clk 0:01:46.9]} 30. h5 {[%clk 0:01:06.4]} 30...
g6 {[%clk 0:01:46]} 31. hxg6+ {[%clk 0:00:44.6]} 31... hxg6 {[%clk 0:01:46.4]}
32. Rb2 {[%clk 0:00:37.4]} 32... Rh8 {[%clk 0:01:44.8]} 33. Kg2 {[%clk
0:00:36.8]} 33... Ke6 {[%clk 0:01:42.2]} 34. Re3 {[%clk 0:00:26.8]} 34... Rdh7
{[%clk 0:01:37.2]} 35. Nf4+ {[%clk 0:00:12.4]} 35... Kf7 {[%clk 0:01:37.5]} 36.
Kg3 {[%clk 0:00:13.8]} 36... Rh1 {[%clk 0:01:34.8]} 37. Rd2 {[%clk 0:00:15.1]}
37... R8h4 {[%clk 0:01:27.4]} 38. Ng2 {[%clk 0:00:12.6]} 38... R4h3+ {[%clk
0:01:23.8]} 39. Kf2 {[%clk 0:00:14]} 39... R1h2 {[%clk 0:01:22.6]} 40. a4 {[%clk
0:00:10.6]} 40... g5 {[%clk 0:01:20.3]} 41. Ra2 {[%clk 0:00:08.9]} 41... Ne6
{[%clk 0:01:21.2]} 42. Be2 {[%clk 0:00:06]} 42... Nf4 {[%clk 0:00:45.7]} 43. Bf1
{[%clk 0:00:07.2]} 43... Rh1 {[%clk 0:00:44.5]} 44. a5 {[%clk 0:00:04.8]} 44...
b5 {[%clk 0:00:23.8]} 45. cxb5 {[%clk 0:00:05.2]} 45... Bxb5 {[%clk 0:00:19.8]}
46. Bxb5 {[%clk 0:00:06.1]} 46... Nxg2 {[%clk 0:00:21]} 47. Bf1 {[%clk
0:00:04.6]} 47... Nf4 {[%clk 0:00:17.3]} 48. Bxh3 {[%clk 0:00:02.3]} 48... Rh2+
{[%clk 0:00:18.3]} 49. Ke1 {[%clk 0:00:03.8]} 49... Rxa2 {[%clk 0:00:19.3]} 50.
Bf1 {[%clk 0:00:04.7]} 50... Rxa5 {[%clk 0:00:20.3]} 51. Rb3 {[%clk 0:00:05.9]}
51... Ke6 {[%clk 0:00:21]} 52. Bc4+ {[%clk 0:00:05.9]} 52... Ke5 {[%clk
0:00:22.3]} 53. Rb7 {[%clk 0:00:07.7]} 53... Kd4 {[%clk 0:00:23.6]} 54. Bb5
{[%clk 0:00:04.6]} 54... Ke3 {[%clk 0:00:23.9]} 55. Kd1 {[%clk 0:00:06]} 55...
Ra1+ {[%clk 0:00:23.5]} 56. Kc2 {[%clk 0:00:06.3]} 56... Kxf3 {[%clk 0:00:25.1]}
57. Bc6 {[%clk 0:00:07.6]} 57... Kxg4 {[%clk 0:00:25.8]} 58. Rf7 {[%clk
0:00:08.2]} 58... Nh5 {[%clk 0:00:22.2]} 59. Rh7 {[%clk 0:00:08.2]} 59... Ng3
{[%clk 0:00:23.4]} 60. Rf7 {[%clk 0:00:08.5]} 60... Nh5 {[%clk 0:00:20]} 61. Rh7
{[%clk 0:00:09.1]} 61... Rh1 {[%clk 0:00:20.7]} 62. Kc3 {[%clk 0:00:08.7]} 62...
Kf4 {[%clk 0:00:21.2]} 63. Kc4 {[%clk 0:00:07.6]} 63... Rc1+ {[%clk 0:00:21.7]}
64. Kb5 {[%clk 0:00:08.1]} 64... Ng3 {[%clk 0:00:23.6]} 65. Rf7 {[%clk
0:00:07.9]} 65... Ke5 {[%clk 0:00:24.8]} 66. Re7+ {[%clk 0:00:07]} 66... Kd6
{[%clk 0:00:26]} 67. Rd7+ {[%clk 0:00:08.5]} 67... Ke6 {[%clk 0:00:27.5]} 68.
Rd8 {[%clk 0:00:08.9]} 68... c4 {[%clk 0:00:28.8]} 69. Bd5+ {[%clk 0:00:07.4]}
69... Ke5 {[%clk 0:00:30]} 70. Re8+ {[%clk 0:00:08.8]} 70... Kd4 {[%clk
0:00:30.9]} 71. Rd8 {[%clk 0:00:09.5]} 71... c3 {[%clk 0:00:31.5]} 72. Kb4
{[%clk 0:00:07.4]} 72... Nxe4 {[%clk 0:00:31.2]} 73. Ba8+ {[%clk 0:00:05.8]}
73... Ke3 {[%clk 0:00:31]} 74. Re8 {[%clk 0:00:06.3]} 74... f5 {[%clk
0:00:32.4]} 0-1